bitfinex-derivatives/quotes_ETHF0:USTF0_20250507
["timestamp","ask_amount","ask_price","bid_price","bid_amount"]
[1746580160137,7.9828,1842.5,1842.2,7.4843]
[1746580160438,9.06838,1842.5,1842.3,1.08564]
[1746580160637,9.06838,1842.5,1842.4,1.9928]
[1746580161136,1.08558,1842.5,1842.4,1.9928]
[1746580162237,3.00878,1842.5,1842.4,1.9928]
[1746580163039,1.08565,1842.3,1842.2,1.9083]
[1746580163228,1.9232,1842.5,1842.2,4.96451]
[1746580163540,1.08565,1842.3,1842.2,4.96451]
[1746580163933,3.52539476,1842.7,1842.2,3.8788]
[1746580164138,3.2078,1842.7,1842.4,1.08556]
[1746580164331,1.08553,1842.6,1842.5,1.9705]
[1746580165336,1.08553,1842.6,1842.5,5.5705]
[1746580166131,1.08553,1842.6,1842.5,1.9705]
[1746580167341,2.98333,1842.6,1842.5,1.9705]
[1746580168134,2.98333,1842.6,1842.5,5.5705]
[1746580168742,1.08553,1842.6,1842.5,5.5705]
[1746580169239,1.08553,1842.6,1842.5,6.65603]
[1746580169746,1.08553,1842.6,1842.5,5.5705]
[1746580170245,3.03453,1842.6,1842.5,5.5705]
[1746580170538,3.03453,1842.6,1842.5,3.6]
[1746580171445,1.08559,1842.4,1842.3,3.0437]
[1746580171641,1.08559,1842.4,1842.3,3.75366043]
[1746580171854,1.08559,1842.4,1842.3,2.66806043]
[1746580172156,1.08559,1842.4,1842.3,6.26806043]
[1746580172554,1.08559,1842.4,1842.3,5.5581]
[1746580175254,3.07529,1842.4,1842.3,1.9581]
[1746580176462,3.07529,1842.4,1842.3,3.04375]
[1746580176656,1.9897,1842.4,1842.3,3.04375]
[1746580176855,1.08559,1842.4,1842.3,3.04375]
[1746580177050,1.08559,1842.4,1842.3,6.64375]
[1746580177557,3.2078,1842.5,1842.4,1.08559]
[1746580177558,4.29337,1842.5,1842.4,1.08559]
[1746580177755,1.08557,1842.5,1842.4,5.08989]
[1746580178161,1.08557,1842.5,1842.4,8.68989]
[1746580178659,1.08552,1842.6,1842.5,1.08552]
[1746580178861,1.08552,1842.6,1842.5,2.0094]
[1746580179352,1.08552,1842.6,1842.5,5.6094]
[1746580180460,1.08552,1842.6,1842.5,6.69493]
[1746580180659,5.972,1842.7,1842.5,5.6094]
[1746580180862,1.08547,1842.6,1842.5,3.6]
[1746580181162,1.08553,1842.5,1842.4,1.9949]
[1746580182960,1.08565,1842.3,1842.2,7.77097]
[1746580183662,1.96,1842.5,1842.2,7.77097]
[1746580183663,1.08564,1842.4,1842.3,1.08565]
[1746580184665,1.08561,1842.4,1842.3,1.0856]
[1746580184866,1.08555,1842.5,1842.4,1.08559]
[1746580185566,1.08561,1842.4,1842.3,1.0856]
[1746580185960,1.08565,1842.3,1842.2,7.77096]
[1746580187065,1.08565,1842.3,1842.2,11.37096]
[1746580187459,1.08565,1842.3,1842.2,6.59396]
[1746580187668,1.08565,1842.3,1842.2,11.36096]
[1746580188166,1.08565,1842.3,1842.2,7.76096]
[1746580188668,1.08565,1842.3,1842.2,6.6753]
[1746580189068,1.08577,1842.1,1842.0,3.2078]
[1746580189267,1.08577,1842.1,1842.0,7.9748]
[1746580189763,1.08577,1842.1,1842.0,9.06061]
[1746580190671,2.92965,1842.2,1842.1,1.08577]
[1746580191565,3.0431,1842.3,1842.2,1.08571]
[1746580191763,1.08571,1842.2,1842.1,2.92472]
[1746580192769,3.04309,1842.3,1842.2,1.08571]
[1746580192970,1.08569,1842.3,1842.2,1.08571]
[1746580194673,1.08561,1842.4,1842.3,1.08565]
[1746580196862,4.29336,1842.5,1842.4,1.08559]
[1746580197063,1.08559,1842.4,1842.3,3.06551]
[1746580197262,6.14736,1842.5,1842.4,1.08559]
[1746580198470,1.0856,1842.4,1842.3,1.0856]
[1746580198672,6.14736,1842.5,1842.4,1.08559]
[1746580198871,1.0856,1842.4,1842.3,1.0856]
[1746580199766,1.08565,1842.3,1842.2,5.85366]
[1746580200173,1.08565,1842.3,1842.2,9.45366]
[1746580200571,1.08563,1842.4,1842.3,1.08563]
[1746580201070,1.08565,1842.3,1842.2,5.85366]
[1746580201272,1.08565,1842.4,1842.3,1.08563]
[1746580201672,1.08565,1842.3,1842.2,5.85366]
[1746580202871,3.02384,1842.4,1842.3,1.08565]
[1746580203369,4.65224,1842.4,1842.1,3.7256]
[1746580203573,1.08571,1842.2,1842.1,2.92474]
[1746580204278,1.08571,1842.2,1842.1,1.839]
[1746580205379,1.08571,1842.2,1842.1,2.92477]
[1746580205977,3.02388,1842.3,1842.2,1.08571]
[1746580207678,1.08571,1842.2,1842.1,2.92472]
[1746580209480,3.02388,1842.3,1842.2,1.08571]
[1746580209981,1.9359,1842.6,1842.2,3.2078]
[1746580210272,1.08553,1842.5,1842.4,4.29336]
[1746580210473,1.08559,1842.4,1842.3,3.01501]
[1746580210675,1.08559,1842.4,1842.3,5.85361]
[1746580210676,3.03949,1842.4,1842.3,5.85361]
[1746580211178,1.9539,1842.4,1842.3,9.45361]
[1746580211680,1.08557,1842.5,1842.4,1.08559]
[1746580211979,1.08559,1842.4,1842.3,9.45363]
[1746580215176,1.08559,1842.4,1842.3,3.6]
[1746580215381,1.08559,1842.4,1842.3,8.354]
[1746580215573,1.08559,1842.4,1842.3,9.43965]
[1746580216080,1.08559,1842.4,1842.3,5.83965]
[1746580217178,1.08558,1842.5,1842.4,1.08559]
[1746580217380,1.08558,1842.5,1842.4,2.0491]
[1746580217978,3.11438,1842.5,1842.4,2.0491]
[1746580219179,3.11438,1842.5,1842.4,5.6491]
[1746580220783,3.11438,1842.5,1842.4,3.6]
[1746580220982,6.32218,1842.5,1842.4,3.6]
[1746580221188,1.08559,1842.4,1842.3,4.754]
[1746580221481,3.01809,1842.4,1842.3,4.754]
[1746580222576,3.01809,1842.4,1842.3,5.83965]
[1746580222778,3.01809,1842.4,1842.3,7.69425]
[1746580222983,3.01809,1842.4,1842.3,6.6086]
[1746580223184,3.01809,1842.4,1842.3,10.2086]
[1746580223986,3.01809,1842.4,1842.3,11.29425]
[1746580224285,1.08559,1842.4,1842.3,10.2086]
[1746580227686,1.08559,1842.4,1842.3,11.29425]
[1746580227890,1.08559,1842.4,1842.3,10.2086]
[1746580228086,3.2078,1842.7,1842.3,10.2086]
[1746580228288,3.2078,1842.7,1842.6,1.08547]
[1746580228490,1.08539,1842.8,1842.7,1.08541]
[1746580228686,1.08539,1842.8,1842.7,5.83941]
[1746580228985,1.08539,1842.8,1842.7,4.754]
[1746580229187,1.08539,1842.8,1842.7,9.43941]
[1746580229982,1.08539,1842.8,1842.7,8.354]
[1746580230482,1.08539,1842.8,1842.7,10.3691]
[1746580230682,1.08539,1842.8,1842.7,11.45451]
[1746580231989,1.08539,1842.8,1842.7,10.3691]
[1746580233382,1.08539,1842.8,1842.7,11.45451]
[1746580233585,2.99541,1842.9,1842.8,1.08535]
[1746580233893,3.8219,1843.1,1842.8,2.9927]
[1746580234091,2.99538,1843.0,1842.8,6.5927]
[1746580234292,2.99534,1843.0,1842.9,1.9074]
[1746580234791,2.99534,1843.0,1842.9,2.9927]
[1746580235088,3.2078,1843.3,1842.9,5.5074]
[1746580235284,9.03492,1843.3,1843.2,1.08512]
[1746580235589,1.08512,1843.2,1843.1,5.83815]
[1746580236588,1.08512,1843.2,1843.1,46.63815]
[1746580237394,1.08509,1843.3,1843.2,1.08509]
[1746580237887,1.08508,1843.3,1843.2,1.08507]
[1746580238093,1.08508,1843.3,1843.2,4.68507]
[1746580238994,3.03855,1843.4,1843.3,1.08506]
[1746580239494,1.9535,1843.4,1843.3,1.08506]
[1746580239694,1.08501,1843.4,1843.2,3.6]
[1746580239992,1.08501,1843.4,1843.3,1.08503]
[1746580240792,1.08488,1843.7,1843.3,5.92044]
[1746580240992,3.06472,1843.7,1843.6,1.08488]
[1746580243108,4.91689,1843.8,1843.5,4.752]
[1746580243307,1.08482,1843.7,1843.6,1.08484]
[1746580243999,1.08488,1843.6,1843.5,5.83693]
[1746580244507,1.8861,1843.7,1843.5,4.752]
[1746580244805,2.97092,1843.7,1843.6,1.08488]
[1746580247408,2.97092,1843.7,1843.6,3.02908]
[1746580250404,1.8861,1843.7,1843.6,3.02908]
[1746580250908,2.97092,1843.7,1843.6,3.02908]
[1746580251710,2.9511,1843.8,1843.7,1.08482]
[1746580251901,3.10721,1844.1,1844.0,1.08465]
[1746580252101,5.972,1844.5,1844.1,1.08459]
[1746580252102,4.87003,1844.2,1844.1,1.08459]
[1746580252313,4.87003,1844.2,1844.1,2.0179]
[1746580253711,1.08459,1844.1,1844.0,4.734]
[1746580253910,3.09689,1844.1,1844.0,4.734]
[1746580254612,2.0123,1844.1,1844.0,5.81865]
[1746580254908,1.08459,1844.1,1844.0,6.5842]
[1746580255107,1.08465,1844.0,1843.9,3.2078]
[1746580255300,2.97865,1844.0,1843.9,9.02651]
[1746580255806,2.97865,1844.0,1843.9,7.9418]
[1746580256010,2.97865,1844.0,1843.9,9.02651]
[1746580256810,2.97865,1844.0,1843.9,7.9418]
[1746580258714,2.97865,1844.0,1843.9,9.02651]
[1746580259009,2.97865,1844.0,1843.9,11.01191]
[1746580259514,2.97865,1844.0,1843.9,9.9272]
[1746580262311,2.97865,1844.0,1843.9,11.01191]
[1746580264718,2.97865,1844.0,1843.9,9.9272]
[1746580265316,2.97865,1844.0,1843.9,11.01191]
[1746580265913,2.97865,1844.0,1843.9,12.93951]
[1746580267319,2.97865,1844.0,1843.9,11.8548]
[1746580268515,2.71186,1843.9,1843.5,3.2078]
[1746580268721,1.08482,1843.7,1843.6,4.733]
[1746580269107,3.12162,1843.7,1843.6,4.733]
[1746580271218,3.12162,1843.7,1843.6,6.6729]
[1746580275323,4.74895,1843.7,1843.3,10.92516]
[1746580275517,3.9734,1843.6,1843.3,12.91516]
[1746580275719,1.085,1843.4,1843.3,4.734]
[1746580276215,4.715,1843.5,1843.3,4.68506]
[1746580276415,1.0849,1843.6,1843.5,1.08494]
[1746580276611,12.54976,1843.7,1843.4,8.6138]
[1746580276918,1.08488,1843.6,1843.5,1.99]
[1746580277723,1.08494,1843.5,1843.4,4.715]
[1746580278126,3.08484,1843.5,1843.4,4.715]
[1746580280225,3.08484,1843.5,1843.4,8.315]
[1746580281225,3.08484,1843.5,1843.4,4.715]
[1746580281619,5.01364,1843.5,1843.4,4.715]
[1746580282526,5.01364,1843.5,1843.4,6.7433]
[1746580284926,5.01364,1843.5,1843.1,7.9228]
[1746580284927,1.08512,1843.2,1843.1,7.9228]
[1746580285228,1.08512,1843.2,1843.1,13.02038]
[1746580285431,1.08512,1843.2,1843.1,11.9352]
[1746580288132,1.08512,1843.2,1843.1,13.02038]
[1746580288431,1.08512,1843.2,1843.1,11.9352]
[1746580289232,1.08512,1843.2,1843.1,13.02038]
[1746580289437,1.08512,1843.2,1843.1,11.9352]
[1746580294137,1.08512,1843.2,1843.1,9.9338]
[1746580294336,5.16012,1843.2,1843.1,9.9338]
[1746580295333,1.08511,1843.3,1843.2,1.08512]
[1746580295533,1.08511,1843.3,1843.2,5.06522]
[1746580296036,1.08511,1843.3,1843.2,3.9801]
[1746580296338,1.08511,1843.3,1843.2,7.5801]
[1746580299838,3.47944855,1843.3,1843.2,7.5801]
[1746580300139,3.47944855,1843.3,1843.1,4.715]
[1746580300140,1.08512,1843.2,1843.1,4.715]
[1746580300343,1.08512,1843.2,1843.1,6.5791]
[1746580300745,1.08512,1843.2,1843.1,1.8641]
[1746580301343,1.08512,1843.2,1843.1,2.94928]
[1746580301542,1.08512,1843.2,1843.1,6.15702]
[1746580304149,1.08512,1843.2,1843.1,3.2078]
[1746580304559,1.08512,1843.2,1843.1,7.0746]
[1746580307779,1.08518,1843.1,1843.0,3.6]
[1746580308064,1.08524,1843.0,1842.9,16.51566]
[1746580308862,1.08524,1843.0,1842.9,15.4304]
[1746580312670,3.08024,1843.0,1842.9,15.4304]
[1746580312972,3.08024,1843.0,1842.9,13.4797]
[1746580313172,3.08024,1843.0,1842.9,9.8797]
[1746580314370,1.08524,1843.0,1842.9,9.8797]
[1746580315074,1.08524,1843.0,1842.9,10.965]
[1746580315472,1.08524,1843.0,1842.9,9.8797]
[1746580318776,3.04944,1843.0,1842.9,9.8797]
[1746580319278,1.08524,1843.0,1842.9,9.8797]
[1746580320183,1.08524,1843.0,1842.9,13.4797]
[1746580320574,2.97864,1843.0,1842.9,13.4797]
[1746580321083,2.97864,1843.0,1842.9,9.8797]
[1746580323882,2.97864,1843.0,1842.9,10.965]
[1746580324086,1.08524,1843.0,1842.9,10.965]
[1746580324285,1.08522,1843.1,1843.0,1.08522]
[1746580324479,1.08522,1843.1,1843.0,1.86]
[1746580326492,1.08524,1843.0,1842.9,7.9238]
[1746580326689,5.00544,1843.0,1842.9,7.9238]
[1746580326985,5.00544,1843.0,1842.9,9.8979]
[1746580328189,5.00544,1843.0,1842.9,13.4979]
[1746580329089,5.00544,1843.0,1842.9,9.8979]
[1746580329987,1.08524,1843.0,1842.9,10.9832]
[1746580331091,1.08524,1843.0,1842.9,14.5832]
[1746580331691,3.8866,1843.3,1842.9,13.4979]
[1746580331993,1.08506,1843.3,1843.2,4.29286]
[1746580332493,7.19517283,1843.5,1843.2,3.2078]
[1746580332687,1.085,1843.4,1843.3,3.05631]
[1746580333001,1.085,1843.4,1843.3,7.75231]
[1746580335900,1.08499,1843.5,1843.4,1.08499]
[1746580336197,1.08499,1843.5,1843.4,5.04779]
[1746580339308,1.08499,1843.5,1843.4,3.9628]
[1746580339500,3.06869,1843.5,1843.4,3.9628]
[1746580339902,3.06869,1843.5,1843.4,5.0478]
[1746580340806,3.06869,1843.5,1843.4,3.9628]
[1746580341307,3.06869,1843.5,1843.4,5.0478]
[1746580342100,3.06869,1843.5,1843.4,3.9628]
[1746580342809,1.08499,1843.5,1843.4,5.0478]
[1746580344110,1.08493,1843.6,1843.5,1.08494]
[1746580344409,1.08493,1843.6,1843.5,5.02314]
[1746580344610,1.08493,1843.6,1843.5,3.9382]
[1746580345010,1.08493,1843.6,1843.5,5.02314]
[1746580345202,1.08493,1843.6,1843.5,3.9382]
[1746580347811,1.08493,1843.6,1843.5,2.0535]
[1746580349114,2.98003,1843.6,1843.5,2.0535]
[1746580349507,6.8951,1843.6,1843.2,3.2078]
[1746580349807,1.08506,1843.3,1843.2,1.0851]
[1746580350203,1.08506,1843.3,1843.2,4.6851]
[1746580351911,1.08506,1843.3,1843.2,3.6]
[1746580352807,1.08506,1843.3,1843.2,4.68512]
[1746580354713,1.08502,1843.4,1843.3,1.08506]
[1746580354917,1.08498,1843.5,1843.4,1.08495]
[1746580356418,2.71165,1844.0,1843.4,2.71243]
[1746580356623,1.08469,1844.0,1843.9,3.2078]
[1746580356823,1.08469,1844.0,1843.9,4.29251]
[1746580357318,1.08471,1843.9,1843.8,1.08474]
[1746580358026,1.08471,1843.9,1843.8,41.88474]
[1746580358219,3.08339,1844.0,1843.9,1.08471]
[1746580358925,1.08471,1843.9,1843.8,41.88471]
[1746580359633,3.08339,1844.0,1843.9,1.08471]
[1746580360821,1.9987,1844.0,1843.9,1.08471]
[1746580361025,1.08471,1843.9,1843.8,41.88473]
[1746580362426,1.08471,1843.9,1843.8,41.88475]
[1746580362625,1.08477,1843.8,1843.7,7.8808]
[1746580362814,4.85417,1843.8,1843.7,7.8808]
[1746580363122,4.85417,1843.8,1843.7,45.09262]
[1746580363433,4.85417,1843.8,1843.7,44.0078]
[1746580363724,4.85417,1843.8,1843.7,3.2078]
[1746580364317,4.85417,1843.8,1843.7,4.29262]
[1746580364517,4.85417,1843.8,1843.7,3.2078]
[1746580365822,1.085,1843.4,1843.3,8.24286898]
[1746580366120,1.085,1843.4,1843.3,7.15780898]
[1746580366520,1.085,1843.4,1843.3,1.08506]
[1746580367123,2.9492,1843.4,1843.3,4.68506]
[1746580367315,2.9492,1843.4,1843.3,5.5464]
[1746580367520,2.9492,1843.4,1843.3,6.63146]
[1746580368031,2.9492,1843.4,1843.3,5.5464]
[1746580368228,2.9492,1843.4,1843.3,3.6]
[1746580369224,1.8642,1843.4,1843.3,1.08506]
[1746580369516,1.8642,1843.4,1843.3,2.96766]
[1746580370030,1.08504,1843.4,1843.3,2.96766]
[1746580370229,1.08504,1843.4,1843.3,6.56766]
[1746580371026,3.01058,1843.5,1843.4,1.085]
[1746580371226,1.08498,1843.5,1843.4,12.8543]
[1746580372030,1.08498,1843.5,1843.4,9.6465]
[1746580372631,1.08498,1843.5,1843.4,8.5615]
[1746580373835,1.08498,1843.5,1843.4,4.651]
[1746580375533,3.05178,1843.5,1843.4,4.651]
[1746580380032,3.05178,1843.5,1843.4,6.6645]
[1746580380236,3.05178,1843.5,1843.4,8.5773]
[1746580380439,1.08498,1843.5,1843.4,9.6623]
[1746580380637,3.9596,1843.7,1843.5,1.08488]
[1746580380638,1.0849,1843.6,1843.5,1.08488]
[1746580380838,1.08494,1843.5,1843.4,6.5638]
[1746580381034,1.08494,1843.5,1843.4,4.651]
[1746580381236,1.08494,1843.5,1843.4,8.251]
[1746580381436,1.08494,1843.5,1843.4,9.336]
[1746580381643,1.08494,1843.5,1843.4,8.251]
[1746580382135,1.08494,1843.5,1843.4,9.336]
[1746580382439,1.08492,1843.6,1843.5,1.08494]
[1746580382635,1.08494,1843.5,1843.4,12.54375]
[1746580383141,1.08494,1843.5,1843.4,8.94375]
[1746580384642,1.08492,1843.6,1843.5,1.0849]
[1746580388340,1.08484,1843.7,1843.6,1.08488]
[1746580388540,1.08481,1843.8,1843.7,1.08482]
[1746580388743,1.08481,1843.8,1843.7,4.96662]
[1746580388942,1.08481,1843.8,1843.7,9.61762]
[1746580389145,4.29246,1844.0,1843.9,1.08471]
[1746580389444,1.08466,1844.0,1843.9,4.29251]
[1746580389643,7.19517283,1844.3,1843.9,5.91954]
[1746580389944,7.19517283,1844.3,1844.1,1.08453]
[1746580389945,1.08453,1844.2,1844.1,1.08453]
[1746580390146,1.08453,1844.2,1844.1,5.228]
[1746580390340,1.08459,1844.1,1844.0,1.9444]
[1746580390546,5.03869,1844.1,1844.0,1.9444]
[1746580390941,5.03869,1844.1,1844.0,3.02905]
[1746580391136,3.01979,1844.1,1844.0,3.02905]
[1746580391945,1.08465,1844.0,1843.9,8.94347]
[1746580392143,3.09475,1844.0,1843.9,8.94347]
[1746580392742,5.11365,1844.0,1843.9,8.94347]
[1746580394147,3.01982,1844.1,1844.0,1.08465]
[1746580394350,5.00542,1844.1,1844.0,1.08465]
[1746580394848,1.08465,1844.0,1843.9,8.94346]
[1746580395741,1.08461,1844.1,1844.0,1.08465]
[1746580395946,1.08458,1844.2,1844.1,1.08456]
[1746580396245,1.08452,1844.3,1844.2,1.0845]
[1746580396439,1.08452,1844.3,1844.2,9.5941]
[1746580397348,1.08452,1844.3,1844.2,11.621]
[1746580397751,1.08452,1844.3,1844.2,10.5365]
[1746580398750,1.08452,1844.3,1844.2,11.62103]
[1746580399043,1.08447,1844.3,1844.2,11.62098]
[1746580399451,2.0142,1844.4,1844.2,11.62098]
[1746580399452,1.08446,1844.4,1844.3,1.08447]
[1746580399751,1.08446,1844.4,1844.3,3.06637]
[1746580400347,1.08446,1844.4,1844.3,1.9819]
[1746580401545,1.08446,1844.4,1844.3,3.06637]
[1746580404953,1.08446,1844.4,1844.3,1.08447]
[1746580405156,2.0018,1844.4,1844.1,4.629]
[1746580405359,1.08453,1844.3,1844.2,2.99132]
[1746580405658,1.08453,1844.3,1844.2,1.9068]
[1746580406555,3.05893,1844.3,1844.2,1.9068]
[1746580407664,5.42309,1844.1,1843.3,10.36560898]
[1746580407960,1.08494,1843.5,1843.4,1.9068]
[1746580408262,1.085,1843.4,1843.3,7.15780898]
[1746580408566,10.7592,1843.4,1843.3,6.04070898]
[1746580408859,10.85893819,1843.4,1843.3,6.04070898]
[1746580409055,10.85893842,1843.4,1843.3,6.04070898]
[1746580409263,10.85893842,1843.4,1843.3,4.72513085]
[1746580409264,15.85893842,1843.4,1843.3,4.72513085]
[1746580409557,15.85893842,1843.4,1843.3,2.0133547]
[1746580410260,15.7592,1843.4,1843.3,2.0133547]
[1746580410660,10.7592,1843.4,1843.3,2.0133547]
[1746580410964,1.08523,1843.1,1842.9,4.629]
[1746580411259,1.8953,1843.0,1842.9,5.7143]
[1746580412163,1.8953,1843.0,1842.9,9.3143]
[1746580414064,1.8669,1843.1,1843.0,1.08524]
[1746580414253,7.72617,1843.3,1843.0,1.8558]
[1746580414456,7.72617,1843.3,1843.1,1.08514]
[1746580414761,2.0211,1843.3,1843.2,1.8558]
[1746580414962,3.10616,1843.3,1843.2,1.8558]
[1746580415160,1.08502,1843.4,1843.2,8.6636]
[1746580415361,1.08506,1843.3,1843.2,6.54089]
[1746580416064,2.0211,1843.4,1843.2,6.54089]
[1746580416259,5.40982159,1843.6,1843.5,1.08494]
[1746580416467,5.40982159,1843.6,1843.5,4.29274]
[1746580416660,5.40982159,1843.6,1843.5,9.29274]
[1746580416861,5.40982159,1843.6,1843.5,50.09274]
[1746580417161,2.91364,1843.9,1843.7,1.08477]
[1746580417359,2.91364,1843.9,1843.8,1.9444]
[1746580417969,8.51559159,1844.0,1843.8,1.9444]
[1746580418364,8.51559159,1844.0,1843.8,3.02912]
[1746580418558,8.51559159,1844.0,1843.9,1.9444]
[1746580418961,7.43092159,1844.0,1843.9,3.02911]
[1746580421166,5.40982159,1844.0,1843.9,3.02911]
[1746580421473,2.91317,1844.2,1843.9,1.9444]
[1746580421666,2.91317,1844.2,1844.1,1.08459]
[1746580421873,2.7642,1844.7,1844.1,5.91926]
[1746580422067,1.08437,1844.5,1844.4,1.08437]
[1746580422272,1.938,1844.7,1844.4,1.8903]
[1746580422570,5.40982159,1844.8,1844.7,1.08424]
[1746580422971,5.40982159,1844.8,1844.7,2.97454]
[1746580423564,7.19517283,1844.9,1844.8,1.08418]
[1746580423768,7.19517283,1844.9,1844.8,10.87288]
[1746580426275,1.08401,1845.1,1845.0,1.08406]
[1746580426973,1.08399,1845.2,1845.0,1.08406]
[1746580427166,1.084,1845.1,1845.0,1.08406]
[1746580428273,2.0237,1845.2,1844.9,1.9561]
[1746580428274,3.10768,1845.2,1845.1,1.084]
[1746580428475,3.10769,1845.2,1845.1,1.084]
[1746580428680,2.0237,1845.2,1844.9,1.9561]
[1746580428869,2.0237,1845.2,1845.1,1.084]
[1746580429176,1.08388,1845.3,1845.2,1.08394]
[1746580429678,1.08388,1845.3,1845.2,2.98244]
[1746580430374,1.08394,1845.2,1845.1,4.609]
[1746580430676,2.99884,1845.2,1845.1,4.609]
[1746580430875,2.99884,1845.2,1845.1,5.693]
[1746580431965,2.99884,1845.2,1845.1,4.609]
[1746580432575,2.99884,1845.2,1845.1,5.693]
[1746580432874,2.99884,1845.2,1845.1,4.609]
[1746580434682,1.084,1845.1,1844.8,3.2078]
[1746580434982,1.084,1845.1,1844.7,7.71991]
[1746580434983,1.8342,1845.0,1844.7,7.71991]
[1746580435283,2.71051,1844.8,1844.3,49.70024]
[1746580435482,1.08437,1844.5,1844.4,1.08441]
[1746580435677,3.8601,1844.7,1844.4,1.8788]
[1746580435883,4.605,1844.9,1844.6,3.2078]
[1746580436078,2.7642,1845.0,1844.9,1.08412]
[1746580436283,5.01382,1845.1,1844.9,1.08407]
[1746580436478,3.9298,1845.1,1844.9,1.08407]
[1746580436679,1.08406,1845.0,1844.9,1.08407]
[1746580436874,1.08412,1844.9,1844.8,1.08414]
[1746580437078,1.08409,1845.0,1844.9,1.08412]
[1746580438382,1.08412,1844.9,1844.8,1.08415]
[1746580438784,2.96811,1845.0,1844.8,1.08415]
[1746580438980,3.06605,1845.1,1844.9,3.2078]
[1746580439186,3.06605,1845.1,1845.0,1.08406]
[1746580439488,3.06605,1845.1,1844.9,4.29187]
[1746580439780,1.982,1845.1,1844.9,3.2078]
[1746580439984,1.9123,1845.4,1845.1,1.084]
[1746580440185,1.08394,1845.2,1845.1,4.2918]
[1746580440682,3.7963,1845.4,1845.2,1.08393]
[1746580440683,1.08391,1845.3,1845.2,1.08393]
[1746580440874,2.96791,1845.3,1845.1,4.29174]
[1746580441076,2.96791,1845.3,1845.2,1.08394]
[1746580441283,1.08394,1845.2,1845.1,4.29176]
[1746580441886,1.08394,1845.2,1845.1,3.2078]
[1746580442287,1.084,1845.1,1845.0,5.69202]
[1746580442788,1.08399,1845.2,1845.1,1.08399]
[1746580443284,1.08921293,1845.2,1845.1,1.08399]
[1746580443887,1.084,1845.1,1845.0,5.69201]
[1746580444078,1.084,1845.1,1845.0,4.608]
[1746580444079,2.9889,1845.1,1845.0,4.608]
[1746580444888,2.9889,1845.1,1845.0,5.69206]
[1746580446893,2.9889,1845.1,1845.0,4.608]
[1746580447093,2.9889,1845.1,1845.0,5.69206]
[1746580447391,2.9889,1845.1,1845.0,4.608]
[1746580448088,1.08412,1844.9,1844.8,3.2078]
[1746580448285,1.08422,1844.8,1844.7,1.08422]
[1746580448684,1.08422,1844.8,1844.7,2.75932]
[1746580448891,2.67437,1844.9,1844.8,1.08418]
[1746580449283,2.67437,1844.9,1844.7,2.7593]
[1746580449284,1.08418,1844.8,1844.7,2.7593]
[1746580449484,2.67438,1844.8,1844.7,2.7593]
[1746580450492,1.5902,1844.8,1844.7,2.7593]
[1746580450692,2.67438,1844.8,1844.7,2.7593]
[1746580451391,1.08424,1844.7,1844.6,10.58696]
[1746580451592,2.80324,1844.7,1844.6,12.18166]
[1746580457795,2.80324,1844.7,1844.6,11.0974]
[1746580457992,2.80324,1844.7,1844.6,7.8158]
[1746580458596,2.71463,1844.8,1844.7,1.08424]
[1746580458796,2.71463,1844.8,1844.7,2.80384]
[1746580459898,1.08408,1845.0,1844.9,1.08409]
[1746580460196,1.08412,1844.9,1844.8,7.56383]
[1746580460394,10.70582293,1845.2,1844.9,1.08411]
[1746580460695,1.08406,1845.0,1844.9,2.74741]
[1746580464004,2.79745,1845.1,1845.0,1.08406]
[1746580464300,1.08412,1844.9,1844.8,5.90054]
[1746580464496,1.08418,1844.8,1844.7,2.77361]
[1746580464804,1.08418,1844.8,1844.7,7.38781]
[1746580465495,1.08418,1844.9,1844.8,1.08418]
[1746580465692,1.6751,1845.0,1844.9,1.08412]
[1746580465903,2.75916,1845.0,1844.9,2.79672]
[1746580466103,2.75916,1845.0,1844.9,1.7126]
[1746580467005,2.75916,1845.0,1844.9,2.79672]
[1746580467202,1.08406,1845.0,1844.9,2.79672]
[1746580467503,1.08406,1845.0,1844.9,1.7126]
[1746580467702,2.70436,1845.0,1844.9,1.7126]
[1746580471410,2.70436,1845.0,1844.9,2.79672]
[1746580471609,1.08406,1845.0,1844.9,2.79672]
[1746580472209,1.08406,1845.0,1844.9,6.17882]
[1746580472409,3.44732293,1845.2,1844.9,5.0947]
[1746580472606,4.53129293,1845.2,1845.1,1.084]
[1746580472805,2.84399293,1845.2,1845.1,1.084]
[1746580473005,2.84399293,1845.2,1845.1,2.7058]
[1746580474213,2.84399293,1845.2,1845.1,1.6218]
[1746580474912,2.84399293,1845.2,1845.1,2.7058]
[1746580480017,0.00522293,1845.2,1845.1,2.7058]
[1746580480317,1e-08,1845.2,1845.1,10.9136]
[1746580483420,2.79291,1845.6,1845.5,1.08377]
[1746580483717,1.7092,1845.6,1845.5,1.08377]
[1746580484617,2.79291,1845.6,1845.5,2.80367]
[1746580484912,6.7092,1845.6,1845.4,7.7978]
[1746580485114,1.08383,1845.4,1845.3,1.08386]
[1746580485418,2.83732,1845.5,1845.4,1.08383]
[1746580485718,1.7535,1845.5,1845.4,1.08383]
[1746580485908,2.83727,1845.5,1845.4,1.08383]
[1746580486417,2.83727,1845.5,1845.2,9.5177]
[1746580486620,1.08377,1845.5,1845.4,1.08383]
[1746580488221,1.08383,1845.4,1845.3,2.80375]
[1746580488906,12.15153,1845.7,1845.3,2.80375]